bitfinex-derivatives/quotes_ETHF0:USTF0_20240831
["timestamp","ask_amount","ask_price","bid_price","bid_amount"]
[1725133792742,4.67541822,2499.5,2499.1,3.46293218]
[1725133793346,0.24005,2499.3,2499.2,1.04657218]
[1725133793535,0.24004,2499.4,2499.1,1.42267218]
[1725133793741,0.3754,2499.2,2499.1,1.42267218]
[1725133794243,0.738,2499.2,2499.1,1.42267218]
[1725133795651,0.738,2499.2,2499.1,3.42383056]
[1725133796150,0.738,2499.2,2499.1,1.42267218]
[1725133796557,0.738,2499.2,2499.1,3.42385622]
[1725133798452,0.738,2499.2,2499.1,3.66392622]
[1725133798754,0.3626,2499.2,2499.1,4.18506248]
[1725133802062,0.3626,2499.2,2499.1,4.18500624]
[1725133802554,0.3626,2499.2,2499.1,7.39280624]
[1725133806352,0.3626,2499.2,2499.1,7.78425837]
[1725133806759,0.3626,2499.2,2499.1,5.78313057]
[1725133806956,0.3626,2499.2,2499.1,7.78427361]
[1725133807151,0.3626,2499.2,2499.1,6.21656517]
[1725133808555,0.61964,2499.5,2499.1,10.21816517]
[1725133808755,0.3688,2499.4,2499.3,1.04550899]
[1725133808955,4.53313419,2499.4,2499.3,1.04550899]
[1725133809350,4.53313419,2499.4,2499.3,3.04653817]
[1725133809549,4.63318955,2499.4,2499.3,1.04550899]
[1725133809853,4.63318792,2499.4,2499.3,1.04550899]
[1725133810151,4.53313419,2499.4,2499.3,1.04550899]
[1725133810359,4.63318735,2499.4,2499.3,1.04550899]
[1725133811462,4.63318735,2499.4,2499.3,3.04658699]
[1725133811756,4.63318735,2499.4,2499.3,3.04658689]
[1725133811963,4.53313419,2499.4,2499.3,3.04658689]
[1725133812964,4.63318769,2499.4,2499.3,3.04658689]
[1725133813661,4.63318769,2499.4,2499.3,1.04550899]
[1725133814565,4.63318769,2499.4,2499.3,3.04661856]
[1725133815058,4.63318769,2499.4,2499.3,3.28666856]
[1725133815260,0.1000535,2499.4,2499.3,7.81022306]
[1725133815560,3.2078,2499.7,2499.3,13.22217146]
[1725133815763,3.2078,2499.7,2499.6,1.04530507]
[1725133816162,7.63113623,2499.7,2499.6,1.04530507]
[1725133816363,7.73117853,2499.7,2499.6,1.28532507]
[1725133817662,0.387,2499.9,2499.8,0.24]
[1725133817866,0.48703767,2499.9,2499.8,0.24]
[1725133818066,4.70090046,2499.9,2499.8,0.24]
[1725133819058,4.70089887,2499.9,2499.8,0.24]
[1725133820558,4.70089887,2499.9,2499.7,1.64363603]
[1725133820854,4.70089887,2499.9,2499.7,1.28513603]
[1725133820855,4.60086279,2499.9,2499.7,1.28513603]
[1725133821052,4.60086279,2499.9,2499.7,0.24]
[1725133821867,4.60086279,2499.9,2499.7,1.28513603]
[1725133822555,4.60086279,2499.9,2499.7,0.24]
[1725133823556,4.60086279,2499.9,2499.7,1.28513603]
[1725133824071,4.60086279,2499.9,2499.7,0.24]
[1725133825968,4.60086279,2499.9,2499.7,1.28513603]
[1725133826759,4.60086279,2499.9,2499.8,0.24]
[1725133826962,4.60086279,2499.9,2499.8,1.66943603]
[1725133827261,0.7472,2500.0,2499.9,0.23999]
[1725133832374,0.7472,2500.0,2499.8,1.66943603]
[1725133834365,0.7472,2500.0,2499.8,0.6243]
[1725133834764,0.7472,2500.0,2499.8,1.66943603]
[1725133834970,0.7472,2500.0,2499.8,0.6243]
[1725133837867,0.7472,2500.0,2499.9,0.23999]
[1725133839370,0.7472,2500.0,2499.8,1.66943603]
[1725133840077,0.7472,2500.0,2499.9,0.23999]
[1725133840981,0.3843,2500.0,2499.9,0.23999]
[1725133841172,0.00021079,2500.1,2500.0,0.23998]
[1725133841374,0.7567,2500.3,2500.2,0.23996]
[1725133841375,0.3913,2500.3,2500.2,0.23996]
[1725133844778,0.3913,2500.3,2500.1,0.60597]
[1725133845079,0.3676,2500.2,2500.1,1.6495302]
[1725133845499,0.3676,2500.2,2500.1,4.60597]
[1725133852275,0.3676,2500.2,2500.1,0.60597]
[1725133854083,0.3676,2500.2,2500.0,1.28954404]
[1725133854273,4.8861233,2500.2,2500.1,0.23997]
[1725133855185,4.8861233,2500.2,2500.0,0.24598384]
[1725133856890,4.5185233,2500.2,2500.1,4.4913302]
[1725133857075,0.00600384,2500.5,2500.4,0.23994]
[1725133857384,0.00600384,2500.5,2500.4,4.4909135]
[1725133857784,0.00600384,2500.5,2500.4,4.8637135]
[1725133859682,0.00600384,2500.5,2500.4,1.6559135]
[1725133859888,0.00600384,2500.5,2500.4,4.8637135]
[1725133861388,0.00600384,2500.5,2500.4,6.86376017]
[1725133861592,0.00600384,2500.5,2500.4,4.8637135]
[1725133861979,0.00600384,2500.5,2500.4,1.6559135]
[1725133869987,0.00600384,2500.5,2500.4,3.0959135]
[1725133879493,0.00600384,2500.5,2500.4,5.09597046]
[1725133879696,0.00600384,2500.5,2500.4,5.09596612]
[1725133882397,0.00600384,2500.5,2500.4,5.61758319]
[1725133882791,0.00600384,2500.5,2500.4,4.05279262]
[1725133883099,0.00600384,2500.5,2500.4,5.61758319]
[1725133884187,0.00600384,2500.5,2500.4,8.82535049]
[1725133886190,0.00600384,2500.5,2500.4,9.21632909]
[1725133886386,0.00600384,2500.5,2500.4,7.65153852]
[1725133886593,0.00600384,2500.5,2500.4,7.65154137]
[1725133886989,0.00600384,2500.5,2500.4,8.82733558]
[1725133887899,0.00600384,2500.5,2500.4,5.61953558]
[1725133888095,0.00600384,2500.5,2500.4,8.82733558]
[1725133888702,0.00600384,2500.5,2500.4,6.77459558]
[1725133888892,14.88342257,2500.5,2500.4,1.83045151]
[1725133889093,0.23994,2500.4,2500.3,1.04477668]
[1725133889305,0.23996,2500.2,2500.1,1.04477668]
[1725133889494,0.23996,2500.2,2500.0,0.00600384]
[1725133889495,0.23997,2500.1,2500.0,0.00600384]
[1725133889695,4.73148099,2500.1,2500.0,0.00600384]
[1725133889906,15.17228098,2500.1,2500.0,0.00600384]
[1725133890100,0.24001,2499.7,2499.6,1.04477668]
[1725133890300,0.24001,2499.7,2499.5,1.56677566]
[1725133890301,0.24002,2499.6,2499.5,1.04477668]
[1725133890519,0.24002,2499.6,2499.4,1.04477668]
[1725133890803,0.3878,2499.5,2499.4,1.04477668]
[1725133890996,4.3886,2499.5,2499.4,1.04477668]
[1725133891302,8.65678838,2499.5,2499.4,1.04383058]
[1725133891896,8.89681838,2499.5,2499.3,1.04383058]
[1725133892096,0.60255,2499.4,2499.2,1.04983442]
[1725133892402,0.24005,2499.3,2499.2,0.00600384]
[1725133892602,4.83500058,2499.3,2499.2,0.00600384]
[1725133892807,8.83660058,2499.3,2499.2,0.00600384]
[1725133896401,8.59655058,2499.3,2499.2,0.00600384]
[1725133896806,4.59495058,2499.3,2499.2,1.44600384]
[1725133897112,0.3878,2499.5,2499.2,2.06536384]
[1725133897707,4.55102601,2499.4,2499.2,2.06536384]
[1725133900410,4.55102601,2499.4,2499.2,1.82530384]
[1725133902405,4.55102601,2499.4,2499.3,0.61095]
[1725133902801,4.55102601,2499.4,2499.3,0.3709]
[1725133906510,4.55102601,2499.4,2499.3,0.61095]
[1725133907600,0.3878,2499.5,2499.3,0.61095]
[1725133910209,0.3878,2499.5,2499.4,0.24004]
[1725133910414,0.3878,2499.5,2499.3,0.61095]
[1725133917916,0.3878,2499.5,2499.3,0.3709]
[1725133918117,4.22106129,2499.4,2499.2,3.21380384]
[1725133918322,0.378,2499.3,2499.2,3.45386384]
[1725133918713,4.59906129,2499.3,2499.2,3.45386384]
[1725133920918,4.22106129,2499.3,2499.2,3.45386384]
[1725133921123,4.22106129,2499.3,2499.2,7.45546384]
[1725133921310,0.61802,2499.7,2499.2,7.45545384]
[1725133921311,0.99482,2499.7,2499.2,7.45545384]
[1725133921514,0.24002,2499.6,2499.3,0.3902]
[1725133921714,4.23129567,2499.5,2499.3,0.3902]
[1725133922026,0.3914,2499.5,2499.3,0.3902]
[1725133922326,4.33975275,2499.4,2499.3,0.3902]
[1725133924224,8.34055275,2499.4,2499.2,3.21380384]
[1725133924421,0.3865,2499.3,2499.2,0.00600384]
[1725133924618,0.99855,2499.3,2499.2,0.00600384]
[1725133924927,9.40831834,2499.3,2499.2,0.00600384]
[1725133925223,5.40671834,2499.3,2499.2,0.00600384]
[1725133926126,9.40831834,2499.3,2499.2,0.00600384]
[1725133933421,9.5083829,2499.3,2499.2,0.00600384]
[1725133936334,9.40831834,2499.3,2499.2,0.00600384]
[1725133937238,5.40671834,2499.3,2499.2,1.04983442]
[1725133937437,5.50678392,2499.3,2499.2,1.04983442]
[1725133937726,5.50678392,2499.3,2499.2,0.00600384]
[1725133937930,5.50678392,2499.3,2499.2,1.04983442]
[1725133938931,5.50678392,2499.3,2499.2,0.00600384]
[1725133942427,4.50823392,2499.3,2499.2,0.00600384]
[1725133942633,0.10006558,2499.3,2499.2,7.44469578]
[1725133943227,0.63204,2499.5,2499.2,7.44469578]
[1725133943426,0.10005786,2499.3,2499.2,1.44193442]
[1725133943632,0.10005786,2499.3,2499.2,3.44309122]
[1725133943833,0.10005786,2499.3,2499.2,7.44469122]
[1725133944033,4.64961103,2499.4,2499.2,7.9676363]
[1725133944234,0.24002,2499.7,2499.3,3.56780732]
[1725133944436,0.10004802,2499.6,2499.4,1.0444695]
[1725133944636,0.10004802,2499.5,2499.4,1.6685095]
[1725133944831,4.52664183,2499.5,2499.4,1.6685095]
[1725133945237,4.52664183,2499.5,2499.4,3.66946257]
[1725133945447,4.52664183,2499.5,2499.4,1.4284695]
[1725133945840,0.24004,2499.4,2499.3,1.0444695]
[1725133946148,5.40474856,2499.4,2499.3,1.0444695]
[1725133946537,5.4047582,2499.4,2499.3,1.0444695]
[1725133946740,5.7719582,2499.4,2499.3,1.0444695]
[1725133947336,0.24005,2499.3,2499.2,1.05047334]
[1725133947638,4.90083953,2499.3,2499.2,1.05047334]
[1725133949646,4.80078187,2499.3,2499.2,1.05047334]
[1725133950441,4.90084354,2499.3,2499.2,1.05047334]
[1725133950945,4.66079354,2499.3,2499.2,1.05047334]
[1725133951149,4.66079354,2499.3,2499.2,2.00720766]
[1725133951353,4.66079354,2499.3,2499.2,3.5739877]
[1725133951354,4.56073187,2499.3,2499.2,3.5739877]
[1725133951549,4.66078938,2499.3,2499.2,3.5739877]
[1725133952144,4.56073187,2499.3,2499.2,3.5739877]
[1725133955045,4.56073187,2499.3,2499.2,3.8140477]
[1725133955247,4.56073187,2499.3,2499.2,2.63806737]
[1725133955446,1.44,2499.7,2499.4,0.24004]
[1725133955652,0.10004639,2499.6,2499.4,1.28456362]
[1725133955841,4.50238222,2499.6,2499.5,0.3703]
[1725133956055,4.60242988,2499.6,2499.5,0.3703]
[1725133956359,4.50238222,2499.6,2499.5,1.65485362]
[1725133956659,4.50238222,2499.6,2499.5,3.65569857]
[1725133956841,4.50238222,2499.6,2499.5,4.17796038]
[1725133957045,4.60242996,2499.6,2499.5,2.61117495]
[1725133958150,4.60242996,2499.6,2499.5,3.65539196]
[1725133958551,4.60242996,2499.6,2499.5,3.41536196]
[1725133959542,4.60242996,2499.6,2499.5,1.41451701]
[1725133960657,4.50238222,2499.6,2499.5,1.41451701]
[1725133962646,4.50238222,2499.6,2499.5,1.79551701]
[1725133964457,4.60242894,2499.6,2499.5,1.79551701]
[1725133964654,6.00308306,2499.6,2499.5,1.79551701]
[1725133964957,6.00308306,2499.6,2499.5,0.79504978]
[1725133965258,4.50238222,2499.6,2499.5,0.79504978]
[1725133966557,4.50238222,2499.6,2499.3,2.16563543]
[1725133966558,6.25323021,2499.6,2499.3,1.80683543]
[1725133966756,0.3742,2499.5,2499.4,2.00097624]
[1725133966950,2.12504799,2499.5,2499.4,2.00097624]
[1725133967657,2.51124799,2499.5,2499.2,0.49378627]
[1725133967858,1.75084799,2499.4,2499.3,0.24005]
[1725133968260,1.75084799,2499.4,2499.3,4.24085]
[1725133968556,6.16305953,2499.4,2499.1,0.00600384]
[1725133968765,6.16305953,2499.4,2499.1,1.44600384]
[1725133969064,4.41221154,2499.4,2499.3,0.24005]
[1725133969765,3.01153315,2499.4,2499.1,1.1787102]
[1725133969965,3.01153315,2499.4,2499.3,0.24005]
[1725133970156,3.32122691,2499.4,2499.3,2.06952003]
[1725133970356,3.32122691,2499.4,2499.3,1.67872937]
[1725133970564,3.01153315,2499.4,2499.3,1.67872937]
[1725133970951,3.01153315,2499.4,2499.3,2.06951077]
[1725133971958,3.01153315,2499.4,2499.3,1.82946077]
[1725133972358,3.01153315,2499.4,2499.3,1.43867937]
[1725133973072,3.01153315,2499.4,2499.3,1.82946013]
[1725133973270,3.01153315,2499.4,2499.3,1.43867937]
[1725133976161,7.62907209,2499.4,2499.3,1.43867937]
[1725133978370,7.62907209,2499.4,2499.3,1.43872556]
[1725133980973,7.62907209,2499.4,2499.2,0.24005]
[1725133981170,7.62907209,2499.4,2499.1,0.37720384]
[1725133981171,3.01153315,2499.3,2499.1,0.37720384]
[1725133981362,3.01153315,2499.2,2499.1,0.00600384]
[1725133981567,8.06938828,2499.2,2499.1,1.83606245]
[1725133984176,8.06938828,2499.2,2499.1,1.83615394]
[1725133987583,8.06938828,2499.2,2499.1,3.83754519]
[1725133989270,8.06938828,2499.2,2499.1,3.83754292]
[1725133990989,8.06938828,2499.2,2499.1,2.00721128]
[1725133991167,8.06938828,2499.2,2499.1,2.39842394]
[1725133991369,8.06938828,2499.2,2499.1,2.98502752]
[1725133991976,8.06938828,2499.2,2499.1,3.83857273]
[1725133992573,8.06938828,2499.2,2499.1,3.44736507]
[1725133994780,8.06938828,2499.2,2499.1,3.68743507]
[1725133994967,7.34318828,2499.2,2499.1,5.51869007]
[1725133995174,1.1228,2499.5,2499.3,0.24004]
[1725133995478,3.01153315,2499.4,2499.3,0.24004]
[1725133995668,3.01153315,2499.4,2499.3,3.68103428]
[1725133996277,3.01153315,2499.4,2499.3,4.07225858]
[1725133996878,3.01153315,2499.4,2499.3,3.68103428]
[1725133997584,3.01153315,2499.4,2499.3,4.07229145]
[1725133997880,3.01153315,2499.4,2499.3,3.21904012]
[1725133998073,3.01153315,2499.4,2499.3,4.07278573]
[1725133998271,3.01153315,2499.4,2499.3,3.68149821]
[1725133998669,3.01153315,2499.4,2499.3,4.07281675]
[1725133999080,3.01153315,2499.4,2499.3,4.07282944]
[1725134001081,3.01153315,2499.4,2499.3,2.24103646]
[1725134001281,3.01153315,2499.4,2499.3,3.21952401]
[1725134001479,3.01153315,2499.4,2499.3,10.78689115]
[1725134001672,0.3839,2499.6,2499.5,0.24003]
[1725134001876,0.3839,2499.6,2499.5,4.0736379]
[1725134002085,3.39543315,2499.6,2499.5,3.6821606]
[1725134006080,3.39543315,2499.6,2499.5,4.07349528]
[1725134006276,0.3771,2499.8,2499.7,0.24001]
[1725134006482,0.3771,2499.8,2499.7,3.6821406]
[1725134006787,3.38863315,2499.8,2499.7,4.07338524]
[1725134007188,3.38863315,2499.8,2499.7,3.6821406]
[1725134008177,3.38863315,2499.8,2499.7,7.28116315]
[1725134008689,3.38863315,2499.8,2499.7,9.37327179]
[1725134008690,3.01153315,2499.8,2499.7,9.37327179]
[1725134008890,3.01153315,2499.8,2499.7,9.372904]
[1725134009575,3.01153315,2499.8,2499.7,7.28079536]
[1725134010388,3.01153315,2499.8,2499.7,9.372904]
[1725134010597,3.01153315,2499.8,2499.7,7.28079536]
[1725134011090,3.01153315,2499.8,2499.7,5.44843867]
[1725134011291,3.01153315,2499.8,2499.7,6.88847915]
[1725134011490,3.01153315,2499.8,2499.7,3.68067915]
[1725134011792,3.01153315,2499.8,2499.7,4.07181864]
[1725134013798,3.01153315,2499.8,2499.7,4.07173967]
[1725134014297,3.01153315,2499.8,2499.7,3.68060018]
[1725134014593,3.01153315,2499.8,2499.7,2.2405597]
[1725134014798,3.01153315,2499.8,2499.7,3.68013481]
[1725134015388,2.41136863,2499.8,2499.7,3.68013481]
[1725134017492,0.3574,2500.1,2500.0,0.23998]
[1725134017700,2.76876863,2500.1,2500.0,0.82636039]
[1725134017999,2.76876863,2500.1,2500.0,0.82626327]
[1725134020098,2.76876863,2500.1,2500.0,0.23998]
[1725134022994,2.76876863,2500.1,2499.9,3.44779]
[1725134023197,2.79696863,2500.0,2499.9,3.44779]
[1725134024196,2.79696863,2500.0,2499.9,0.23999]
[1725134033509,2.79696863,2500.0,2499.9,0.82651572]
[1725134034705,2.79696863,2500.0,2499.9,0.23999]
[1725134034904,2.79696863,2500.0,2499.9,0.82647857]
[1725134035206,2.79696863,2500.0,2499.9,0.82650006]
[1725134038103,2.79696863,2500.0,2499.9,0.82649751]
[1725134038809,2.79696863,2500.0,2499.9,0.58650751]
[1725134039022,0.24003,2499.5,2499.4,2.35956354]
[1725134039304,0.24003,2499.5,2499.2,3.2078]
[1725134039305,1.68003,2499.5,2499.2,3.2078]
[1725134039605,0.7255,2499.4,2499.2,3.2078]
[1725134040118,4.19951534,2499.3,2499.2,3.2078]
[1725134040501,0.7255,2499.4,2499.3,0.24005]
[1725134040697,0.3635,2499.4,2499.3,3.80621381]
[1725134040904,0.3635,2499.4,2499.3,7.80701381]
[1725134041411,0.3635,2499.4,2499.3,6.24165928]
[1725134041615,0.3635,2499.4,2499.3,7.56690839]
[1725134041913,0.3635,2499.4,2499.3,4.0008]
[1725134042701,0.3635,2499.4,2499.2,0.59615]
[1725134042903,0.3635,2499.4,2499.2,6.16224911]
[1725134043311,0.3635,2499.4,2499.2,2.16144911]
[1725134044305,4.17237093,2499.3,2499.1,3.25137295]
[1725134044506,0.3694,2499.2,2499.1,3.25137295]
[1725134044713,0.748,2499.2,2499.1,3.81238073]
[1725134044911,0.748,2499.2,2499.1,3.57231073]
[1725134046316,0.748,2499.2,2499.1,3.57234939]
[1725134049415,0.23997,2500.1,2499.1,17.84197303]
[1725134049613,1.1219,2500.0,2499.7,0.24001]
[1725134049820,4.55553099,2499.8,2499.6,1.68002]
[1725134050009,4.55553099,2499.8,2499.7,0.3739]
[1725134051018,4.55553099,2499.8,2499.7,0.96016579]
[1725134051411,4.55553099,2499.8,2499.7,1.20017579]
[1725134051718,1.1219,2500.0,2499.8,0.24]
[1725134051909,0.7468,2500.0,2499.8,0.24]
[1725134058023,0.3552,2499.9,2499.8,0.24]
[1725134058320,0.3552,2499.9,2499.8,0.82627871]
[1725134060024,0.3552,2499.9,2499.8,0.58627871]
[1725134060824,0.3552,2499.9,2499.8,0.58624714]
[1725134062617,0.3552,2499.9,2499.8,0.82624714]
[1725134063526,0.3552,2499.9,2499.8,0.58624714]
[1725134064930,8.74691509,2499.9,2499.7,3.2078]
[1725134065226,4.98690509,2499.9,2499.7,3.2078]
[1725134066223,1.68,2499.8,2499.5,1.56531952]
[1725134066421,1.68,2499.8,2499.6,0.58636025]
[1725134066629,4.8652583,2499.7,2499.5,0.24003]
[1725134066834,0.3743,2499.6,2499.5,0.24003]
[1725134067135,0.3743,2499.6,2499.5,2.58717354]
[1725134070647,0.3743,2499.6,2499.5,2.5871372]
[1725134070935,0.3743,2499.6,2499.5,2.58717145]
[1725134072335,0.3743,2499.6,2499.5,4.15249097]
[1725134074430,0.3743,2499.6,2499.5,2.58717145]
[1725134074937,0.3743,2499.6,2499.5,4.15249097]
[1725134075323,0.16546419,2499.6,2499.5,4.15249097]
[1725134077230,0.16546419,2499.6,2499.5,3.56613807]
[1725134077538,0.16546419,2499.6,2499.5,4.54361271]
[1725134078541,0.16546419,2499.6,2499.5,4.15250921]
[1725134080543,0.16546419,2499.6,2499.5,2.54273765]
[1725134080740,0.16546419,2499.6,2499.5,4.54352689]
[1725134083536,0.16546419,2499.6,2499.5,4.54528332]
[1725134083743,0.16546419,2499.6,2499.5,2.00078924]
[1725134083952,0.16546419,2499.6,2499.5,4.54525962]
[1725134084443,4.8652583,2499.7,2499.5,3.21821771]
[1725134084636,4.8652583,2499.7,2499.6,4.54536762]
[1725134084836,4.8652583,2499.7,2499.6,4.15429525]
[1725134085037,4.8652583,2499.7,2499.6,4.52849525]
[1725134085239,4.8652583,2499.7,2499.6,4.91956266]
[1725134085836,4.5067583,2499.7,2499.6,6.59958266]
[1725134086039,0.3552,2499.9,2499.6,7.8407217]
[1725134086243,0.3552,2499.9,2499.7,3.56781226]
[1725134086450,0.3552,2499.9,2499.8,3.63172491]
[1725134086641,0.7181,2500.0,2499.8,3.87169071]
[1725134086945,0.7181,2500.0,2499.9,0.58625236]
[1725134087140,0.7181,2500.0,2499.9,1.6309083]
[1725134087449,0.7181,2500.0,2499.9,1.8708983]
[1725134090048,0.7181,2500.0,2499.9,1.6309083]
[1725134090639,0.7181,2500.0,2499.9,1.42605594]
[1725134090839,0.7181,2500.0,2499.9,2.01220825]
[1725134091352,0.7181,2500.0,2499.9,4.01275088]
[1725134091650,0.7181,2500.0,2499.9,2.01220825]
[1725134092641,0.7181,2500.0,2499.9,4.01277519]
[1725134093551,0.7181,2500.0,2499.9,2.96811925]
[1725134093953,0.7181,2500.0,2499.9,2.38196694]
[1725134094141,0.7181,2500.0,2499.9,2.96784544]
[1725134094345,0.7181,2500.0,2499.9,4.53486846]
[1725134094650,3.2078,2500.1,2499.9,4.53486846]
[1725134094844,3.2078,2500.1,2500.0,1.63072944]
[1725134095255,7.37343688,2500.1,2500.0,1.63072944]
[1725134095842,4.16563688,2500.1,2500.0,1.63072944]
[1725134097346,4.16563688,2500.1,2500.0,1.63103262]
[1725134100671,4.16563688,2500.1,2500.0,1.63115126]
[1725134101163,13.05340688,2500.1,2500.0,0.58630032]
[1725134102755,19.05340688,2500.1,2500.0,0.58630032]
[1725134103055,0.23999,2499.9,2499.8,1.04485094]
[1725134103254,0.23999,2499.9,2499.8,0.58651766]
[1725134103451,8.42897717,2499.9,2499.8,0.58651766]
[1725134103755,8.79107717,2499.9,2499.8,0.58651766]
[1725134106365,0.24,2499.8,2499.7,1.04485094]
[1725134106552,0.983,2499.8,2499.7,1.04485094]
[1725134106857,9.51325461,2499.8,2499.7,1.63158762]
[1725134108459,10.95325461,2499.8,2499.7,0.58673668]
[1725134109059,0.24002,2499.7,2499.5,1.04485094]
[1725134109255,0.24002,2499.7,2499.6,0.58658354]
[1725134109564,8.44059926,2499.7,2499.6,0.58658354]
[1725134110063,11.64839926,2499.7,2499.6,0.58658354]
[1725134113165,0.24002,2499.6,2499.5,1.04485094]
[1725134113568,8.5120423,2499.6,2499.5,0.58599782]
[1725134117258,4.5112423,2499.6,2499.5,0.58599782]
[1725134117459,4.5112423,2499.6,2499.5,0.93909782]
[1725134119166,4.2712223,2499.6,2499.5,1.98394876]
[1725134119362,4.2712223,2499.6,2499.5,2.72854876]
[1725134119563,4.58483261,2499.7,2499.5,2.72879455]
[1725134119764,0.24001,2499.7,2499.6,0.58624361]
[1725134120066,4.82442,2499.7,2499.6,0.58624361]
[1725134120263,4.58441,2499.7,2499.6,0.82626361]
[1725134120674,4.58441,2499.7,2499.6,0.58624361]
[1725134121064,4.58441,2499.7,2499.6,0.82626361]
[1725134121566,4.58441,2499.7,2499.6,0.58624361]
[1725134122763,4.58441,2499.7,2499.5,2.38258094]
[1725134123073,4.58441,2499.7,2499.6,0.58633919]
[1725134123755,4.58441,2499.7,2499.6,0.82635919]
[1725134124063,0.62186,2500.2,2499.6,12.27394514]
[1725134124262,0.62186,2500.2,2499.8,1.04472753]
[1725134124469,4.24365365,2500.0,2499.9,0.96343919]
[1725134124768,0.3769,2500.1,2499.9,1.33203919]
[1725134124966,0.3769,2500.1,2499.9,0.7457]
[1725134125165,4.68935337,2500.1,2499.9,0.7457]
[1725134125758,4.68935337,2500.1,2499.8,1.04472753]
[1725134125962,0.3849,2500.0,2499.9,0.58645297]
[1725134126168,0.3849,2500.0,2499.8,1.04472753]
[1725134126365,4.91267161,2500.0,2499.9,0.58643627]
[1725134127970,4.52777161,2500.0,2499.9,0.58643627]
[1725134128370,4.52777161,2500.0,2499.9,0.97193627]
[1725134129574,4.52777161,2500.0,2499.9,0.62549]
[1725134129883,4.52777161,2500.0,2499.9,1.21163393]
[1725134130572,4.52777161,2500.0,2499.9,2.25636146]
[1725134130772,4.52777161,2500.0,2499.9,5.69695231]
[1725134130980,4.52777161,2500.0,2499.9,6.21931607]
[1725134131278,4.52777161,2500.0,2499.9,6.61017154]
[1725134132771,4.52777161,2500.0,2499.9,6.21931607]
[1725134133174,4.52777161,2500.0,2499.9,6.21918752]
[1725134133583,4.52777161,2500.0,2499.9,6.61014001]
[1725134134277,0.62144384,2500.5,2500.2,0.23996]
[1725134134278,0.38150384,2500.5,2500.2,0.23996]
[1725134134473,0.73850384,2500.5,2500.3,0.3792]
[1725134134679,4.49410404,2500.4,2500.3,0.3792]
[1725134135377,4.49410404,2500.4,2500.3,5.20442457]
[1725134135579,0.00600384,2500.5,2500.3,5.58052457]
[1725134135781,0.00600384,2500.5,2500.4,0.82598307]
[1725134136081,0.00600384,2500.5,2500.4,0.58604307]
[1725134136283,0.00600384,2500.5,2500.3,2.03900074]
[1725134136584,0.00600384,2500.5,2500.4,0.58605907]
[1725134137081,4.80397832,2500.5,2500.3,0.23995]
[1725134137378,4.80397832,2500.5,2500.2,1.64431074]
[1725134137568,0.3909,2500.4,2500.3,0.58611725]
[1725134137974,4.6842627,2500.4,2500.3,0.58611725]
[1725134139082,4.6842627,2500.4,2500.3,0.82606725]
[1725134139388,4.6842627,2500.4,2500.3,0.23995]
[1725134140378,4.6842627,2500.4,2500.2,0.60056]
[1725134145878,6.1242627,2500.4,2500.0,1.04375074]
[1725134146092,1.44,2500.2,2499.9,3.2078]
[1725134146383,5.2628695,2500.1,2499.9,3.2078]
[1725134146593,5.6168695,2500.1,2499.9,3.2078]
[1725134146790,5.6168695,2500.1,2499.9,3.44779]
[1725134146976,5.6168695,2500.1,2499.9,3.2078]
[1725134147794,5.8568395,2500.1,2499.9,3.2078]
[1725134148388,5.6168695,2500.1,2499.9,3.2078]
[1725134148792,5.6168695,2500.1,2499.8,0.24]
[1725134149094,5.8568495,2500.1,2499.8,0.24]
[1725134150291,5.6168695,2500.1,2499.8,0.24]
[1725134151888,5.6168695,2500.1,2499.9,0.58633941]
[1725134152087,5.6168695,2500.1,2499.8,0.24]
[1725134152088,5.8568395,2500.1,2499.8,0.24]
[1725134152390,0.23999,2499.9,2499.7,1.04375074]
[1725134152594,0.23999,2499.9,2499.6,1.04375074]
[1725134152799,4.61183658,2499.8,2499.7,0.58645568]
[1725134153296,0.3851,2499.8,2499.7,0.58645568]
[1725134153797,0.17027268,2499.8,2499.7,0.58645568]
[1725134156195,0.17027268,2499.8,2499.7,0.58655501]
[1725134157406,0.17027268,2499.8,2499.7,2.25121575]
[1725134157698,0.7449,2500.1,2499.9,0.23999]
[1725134157993,0.7449,2500.1,2500.0,0.3809]
[1725134158392,5.00220985,2500.1,2500.0,0.3809]
[1725134158795,5.00220985,2500.1,2500.0,0.9673089]
[1725134159590,5.00220985,2500.1,2500.0,0.96732209]
[1725134161798,5.00220985,2500.1,2500.0,1.20730209]
[1725134161999,5.00220985,2500.1,2500.0,0.62088]
[1725134162201,5.00220985,2500.1,2500.0,1.20730602]
[1725134163599,5.00220985,2500.1,2500.0,0.96732602]
[1725134165392,5.00220985,2500.1,2500.0,0.96744836]
[1725134166703,5.00220985,2500.1,2500.0,0.58654836]
[1725134167293,5.00220985,2500.1,2500.0,1.62963374]
[1725134168306,5.00220985,2500.1,2500.0,0.58654836]
[1725134168504,5.00220985,2500.1,2500.0,1.62963374]
[1725134168707,5.00220985,2500.1,2500.0,1.04308538]
[1725134168892,5.00220985,2500.1,2500.0,1.6298303]
[1725134171511,9.24217985,2500.1,2500.0,0.58674492]
[1725134172109,9.00220985,2500.1,2499.9,1.04308538]
[1725134172411,5.00220985,2500.1,2500.0,0.58660621]
[1725134173004,9.00220985,2500.1,2500.0,0.58660621]
[1725134174101,9.24217985,2500.1,2500.0,0.58660621]
[1725134174704,9.59587985,2500.1,2500.0,0.58660621]
[1725134175605,9.59587985,2500.1,2500.0,0.58661491]
[1725134177311,5.59587985,2500.1,2500.0,0.58661491]
[1725134181012,5.59587985,2500.1,2500.0,1.62970029]
[1725134184814,5.59587985,2500.1,2500.0,3.63026746]
[1725134185416,5.59587985,2500.1,2500.0,2.97844181]
[1725134185722,5.59587985,2500.1,2500.0,2.97848928]
[1725134185908,5.59587985,2500.1,2500.0,4.5441154]
[1725134186109,5.59587985,2500.1,2500.0,2.97848928]
[1725134186310,5.59587985,2500.1,2500.0,4.5441154]
[1725134186608,5.59587985,2500.1,2500.0,2.97848928]
[1725134186909,5.35590985,2500.1,2500.0,4.5441154]
[1725134190613,5.35590985,2500.1,2500.0,4.54411745]
[1725134191319,5.35590985,2500.1,2500.0,2.97849133]
[1725134192219,5.35590985,2500.1,2500.0,2.58719591]
[1725134192421,5.35590985,2500.1,2500.0,2.00051261]
[1725134192625,5.35590985,2500.1,2500.0,3.20668087]
[1725134192813,5.35590985,2500.1,2500.0,3.59804837]
[1725134193014,5.35590985,2500.1,2500.0,3.3701086]
[1725134193417,5.35590985,2500.1,2500.0,4.47900062]
[1725134193616,5.35590985,2500.1,2500.0,6.07664116]
[1725134193822,4.25730985,2500.1,2500.0,6.31662116]
[1725134194118,4.25730985,2500.1,2500.0,10.31744933]
[1725134195414,4.25730985,2500.1,2500.0,4.22945191]
[1725134195812,4.25730985,2500.1,2500.0,4.62104581]